fUST/lending_fUST_20250816
["ID","MTS","AMOUNT","RATE_DAILY","PERIOD"]
[379627029,1755349856145,-480.0,0.00022465,3]
[379627030,1755349856155,-1068.75,0.00022465,3]
[379627031,1755349856164,-480.0,0.00022465,3]
[379627032,1755349856174,-480.0,0.00022465,3]
[379627033,1755349856183,-5327.74,0.00022465,3]
[379627034,1755349856193,-420.0,0.00022465,3]
[379627035,1755349856202,-754.16,0.00022465,3]
[379627036,1755349856212,-480.0,0.00022465,3]
[379627037,1755349856221,-480.0,0.00022465,3]
[379627038,1755349856231,-480.0,0.00022465,3]
[379627039,1755349856241,-480.0,0.00022465,3]
[379627040,1755349856250,-480.0,0.00022465,3]
[379627041,1755349856259,-480.0,0.00022465,3]
[379627042,1755349856269,-480.0,0.00022465,3]
[379627043,1755349856278,-480.0,0.00022465,3]
[379627044,1755349856323,-480.0,0.00022465,3]
[379627045,1755349856332,-480.0,0.00022465,3]
[379627046,1755349856341,-1811.08,0.00022465,3]
[379627047,1755349856352,-1524.43,0.00022465,3]
[379627048,1755349856361,-1319.02,0.00022465,3]
[379627049,1755349856371,-480.0,0.00022465,3]
[379627050,1755349856380,-2629.13,0.00022465,3]
[379627051,1755349856391,-959.29,0.00022465,3]
[379627052,1755349856400,-1808.31,0.00022465,3]
[379627053,1755349856410,-480.0,0.00022465,3]
[379627054,1755349856419,-420.0,0.00022465,3]
[379627055,1755349856428,-1146.67,0.00022465,3]
[379627056,1755349856437,-480.0,0.00022465,3]
[379627057,1755349856446,-480.0,0.00022465,3]
[379627058,1755349856456,-480.0,0.00022465,3]
[379627059,1755349856464,-480.0,0.00022465,3]
[379627060,1755349856474,-404.525556,0.00022465,3]
[379627061,1755349856483,-1574.37,0.00022465,3]
[379627062,1755349856493,-440.0,0.00022465,3]
[379627063,1755349856502,-480.0,0.00022465,3]
[379627064,1755349856511,-716.42,0.00022465,3]
[379627065,1755349856521,-480.0,0.00022465,3]
[379627066,1755349856530,-1549.41,0.00022465,3]
[379627067,1755349856540,-480.0,0.00022465,3]
[379627068,1755349856549,-480.0,0.00022465,3]
[379627069,1755349856558,-480.0,0.00022465,3]
[379627070,1755349856568,-891.71,0.00022465,3]
[379627071,1755349856577,-420.0,0.00022465,3]
[379627072,1755349856587,-445.78916306,0.00022465,3]
[379627073,1755349856596,-480.0,0.00022465,3]
[379627074,1755349856606,-620.49,0.00022465,3]
[379627075,1755349856615,-1485.98,0.00022465,3]
[379627076,1755349856625,-480.0,0.00022465,3]
[379627077,1755349856634,-480.0,0.00022465,3]
[379627078,1755349856643,-289.77651135,0.00022465,3]
[379627079,1755349856653,-440.0,0.00022465,3]
[379627080,1755349856662,-8906.36,0.00022465,3]
[379627081,1755349856671,-480.0,0.00022465,3]
[379627082,1755349856680,-580.40030372,0.00022465,3]
[379627083,1755349856690,-440.0,0.00022465,3]
[379627084,1755349856699,-440.0,0.00022465,3]
[379627085,1755349856709,-639.12,0.00022465,3]
[379627086,1755349856718,-841.7,0.00022465,3]
[379627087,1755349856728,-819.77,0.00022465,3]
[379627088,1755349856742,-1317.03,0.00022465,3]
[379627089,1755349856751,-718.06,0.00022465,3]
[379627090,1755349856761,-1046.17,0.00022465,3]
[379627091,1755349856771,-1119.19,0.00022465,3]
[379627092,1755349856786,-597.606878,0.00022465,7]
[379627093,1755349856795,-420.0,0.00022465,3]
[379627094,1755349856804,-480.0,0.00022465,3]
[379627095,1755349856814,-1254.61,0.00022465,3]
[379627096,1755349856824,-480.0,0.00022465,3]
[379627097,1755349856833,-440.0,0.00022465,3]
[379627098,1755349856842,-480.0,0.00022465,3]
[379627099,1755349856852,-597.606878,0.00022465,7]
[379627100,1755349856861,-480.0,0.00022465,3]
[379627101,1755349856871,-480.0,0.00022465,3]
[379627102,1755349856880,-480.0,0.00022465,3]
[379627103,1755349856889,-480.0,0.00022465,3]
[379627104,1755349856899,-480.0,0.00022465,3]
[379627105,1755349856908,-480.0,0.00022465,3]
[379627106,1755349856917,-11999.33,0.00022465,3]
[379627107,1755349856926,-2167.24878024,0.00022465,3]
[379627108,1755349857150,-464.18,0.00021209,2]
[379627109,1755349857165,-2626.19049654,0.00021209,2]
[379627110,1755349857174,-3090.37049654,0.00021513,2]
[379627111,1755349857184,-480.0,0.00021917,3]
[379627112,1755349857193,-399.22437161,0.00021917,3]
[379627113,1755349857202,-480.0,0.00021917,3]
[379627114,1755349857212,-480.0,0.00021917,3]
[379627115,1755349857221,-480.0,0.00022191,3]
[379627116,1755349857231,-480.0,0.00022191,3]
[379627117,1755349857240,-480.0,0.00022191,3]
[379627118,1755349857250,-770.65121976,0.00022465,3]
[379627119,1755349857259,-480.0,0.00022465,3]
[379627120,1755349857268,-480.0,0.00022465,3]
[379627121,1755349857277,-480.0,0.00022465,3]
[379627122,1755349857286,-480.0,0.00022465,3]
[379627123,1755349857295,-460.0,0.00022465,3]
[379627124,1755349857304,-1366.59,0.00022465,3]
[379627125,1755349857315,-536.49,0.00022465,3]
[379627126,1755349857325,-460.0,0.00022465,3]
[379627127,1755349857337,-600.26,0.00022465,3]
[379627128,1755349857346,-781.67,0.00022465,3]
[379627129,1755349857357,-4836.78,0.00022465,3]
[379627130,1755349857367,-480.0,0.00022465,3]
[379627131,1755349857376,-480.0,0.00022465,3]
[379627132,1755349857386,-480.0,0.00022465,3]
[379627133,1755349857395,-480.0,0.00022465,3]
[379627134,1755349857405,-13906.26,0.00022465,3]
[379627135,1755349857418,-480.0,0.00022465,3]
[379627136,1755349857436,-480.0,0.00022465,3]
[379627137,1755349857446,-480.0,0.00022465,3]
[379627138,1755349857455,-530.13900153,0.00022465,3]
[379627139,1755349857464,-1092.9,0.00022465,3]
[379627140,1755349857474,-480.0,0.00022465,3]
[379627141,1755349857484,-480.0,0.00022465,3]
[379627142,1755349857493,-480.0,0.00022465,3]
[379627143,1755349857503,-480.0,0.00022465,3]
[379627144,1755349857512,-480.0,0.00022465,3]
[379627145,1755349857521,-1621.37,0.00022465,3]
[379627146,1755349857530,-2802.78,0.00022465,3]
[379627147,1755349857540,-971.16,0.00022465,3]
[379627148,1755349857550,-1200.42,0.00022465,3]
[379627149,1755349857560,-480.0,0.00022465,3]
[379627150,1755349857570,-480.0,0.00022465,3]
[379627151,1755349857580,-1608.75,0.00022465,3]
[379627152,1755349857590,-480.0,0.00022465,3]
[379627153,1755349857600,-480.0,0.00022465,3]
[379627154,1755349857609,-1101.05,0.00022465,3]
[379627155,1755349857620,-480.0,0.00022465,3]
[379627156,1755349857630,-945.36,0.00022465,3]
[379627157,1755349857640,-3997.99,0.00022465,3]
[379627158,1755349857650,-480.0,0.00022465,3]
[379627159,1755349857660,-550.68107786,0.00022465,3]
[379627160,1755349857670,-1000.12,0.00022465,3]
[379627161,1755349857680,-565.38097869,0.00022465,3]
[379627162,1755349857689,-1382.52,0.00022465,3]
[379627163,1755349857699,-480.0,0.00022465,3]
[379627164,1755349857708,-480.0,0.00022465,3]
[379627165,1755349857718,-480.0,0.00022465,3]
[379627166,1755349857727,-480.0,0.00022465,3]
[379627167,1755349857738,-1379.76,0.00022465,3]
[379627168,1755349857748,-3560.84,0.00022465,3]
[379627169,1755349857758,-480.0,0.00022465,3]
[379627170,1755349857767,-480.0,0.00022465,3]
[379627171,1755349857777,-480.0,0.00022465,3]
[379627172,1755349857787,-480.0,0.00022465,3]
[379627173,1755349857797,-480.0,0.00022465,3]
[379627174,1755349857807,-506.66,0.00022465,3]
[379627175,1755349857817,-480.0,0.00022465,3]
[379627176,1755349857826,-480.0,0.00022465,3]
[379627177,1755349857836,-561.79,0.00022465,3]
[379627178,1755349857846,-438.90224332,0.00022465,3]
[379627179,1755349857856,-480.0,0.00022465,3]
[379627180,1755349857865,-7773.51,0.00022465,3]
[379627181,1755349857875,-480.0,0.00022465,3]
[379627182,1755349857886,-480.0,0.00022465,3]
[379627183,1755349857896,-480.0,0.00022465,3]
[379627184,1755349857906,-480.0,0.00022465,3]
[379627185,1755349857915,-1224.21,0.00022465,3]
[379627186,1755349857925,-480.0,0.00022465,3]
[379627187,1755349857934,-440.0,0.00022465,3]
[379627188,1755349857944,-1364.63,0.00022465,3]
[379627189,1755349857953,-1335.89,0.00022465,3]
[379627190,1755349857962,-480.0,0.00022465,3]
[379627191,1755349857972,-480.0,0.00022465,3]
[379627192,1755349857982,-480.0,0.00022465,3]
[379627193,1755349857991,-1024.5,0.00022465,3]
[379627194,1755349858001,-480.0,0.00022465,3]
[379627195,1755349858010,-480.0,0.00022465,3]
[379627196,1755349858019,-480.0,0.00022465,3]
[379627197,1755349858029,-634.22,0.00022465,3]
[379627198,1755349858039,-480.0,0.00022465,3]
[379627199,1755349858049,-480.0,0.00022465,3]
[379627200,1755349858058,-480.0,0.00022465,3]
[379627201,1755349858068,-480.0,0.00022465,3]
[379627202,1755349858078,-480.0,0.00022465,3]
[379627203,1755349858088,-166.09939369,0.00022466,2]
[379627204,1755349858107,-150.0,0.00022473,2]
[379627205,1755349858121,-1680.0,0.0002249,2]
[379627206,1755349858131,-2567.94300906,0.0002252,2]
[379627207,1755349858140,-153.32251726,0.00022521,2]
[379627208,1755349858151,-153.32251725,0.00022521,2]
[379627209,1755349858160,-431.70686784,0.00022521,2]
[379627210,1755349858170,-500.0,0.00022521,2]
[379627211,1755349858179,-1000.0,0.00022521,2]
[379627212,1755349858189,-1000.0,0.00022521,2]
[379627213,1755349858198,-500.0,0.00022521,2]
[379627214,1755349858208,-884.7,0.00022533,4]
[379627215,1755349858217,-151.0,0.0002254,7]
[379627216,1755349858226,-151.0,0.0002254,7]
[379627217,1755349858236,-413.0,0.00022543,2]
[379627218,1755349858246,-413.0,0.00022602,2]
[379627219,1755349858256,-200.40924175,0.00022603,2]
[379627220,1755349858266,-1761.0,0.0002261,3]
[379627221,1755349858276,-1761.0,0.0002261,3]
[379627222,1755349858285,-1761.0,0.0002261,3]
[379627223,1755349858295,-1761.0,0.0002261,3]
[379627224,1755349858304,-1761.0,0.0002261,3]
[379627225,1755349858315,-1761.0,0.0002261,3]
[379627226,1755349858325,-1761.0,0.0002261,3]
[379627227,1755349858335,-1761.0,0.0002261,3]
[379627228,1755349858344,-1761.0,0.0002261,3]
[379627229,1755349858355,-1761.0,0.0002261,3]
[379627230,1755349858364,-1761.0,0.0002261,3]
[379627231,1755349858374,-1761.0,0.0002261,3]
[379627232,1755349858384,-1761.0,0.0002261,3]
[379627233,1755349858401,-1761.0,0.0002261,3]
[379627234,1755349858431,-1761.0,0.0002261,3]
[379627235,1755349858478,-1761.0,0.0002261,3]
[379627236,1755349858497,-1761.0,0.0002261,3]
[379627237,1755349858507,-1761.0,0.0002261,3]
[379627238,1755349858517,-1742.0,0.0002261,3]
[379627239,1755349858526,-166.09939369,0.0002263,2]
[379627240,1755349858536,-413.0,0.00022655,2]
[379627241,1755349858546,-151.0,0.00022656,7]
[379627242,1755349858556,-168.0,0.00022665,2]
[379627243,1755349858565,-151.0,0.00022719,7]
[379627244,1755349858575,-203.104417,0.00022719,7]
[379627245,1755349858585,-1000.0,0.00022721,2]
[379627246,1755349858595,-151.0,0.00022721,7]
[379627247,1755349858604,-151.0,0.00022721,7]
[379627248,1755349858614,-151.0,0.00022721,7]
[379627249,1755349858624,-151.0,0.00022721,7]
[379627250,1755349858633,-151.0,0.00022721,7]
[379627251,1755349858643,-4087.48139,0.00022721,7]
[379627252,1755349858653,-4087.48139,0.00022721,7]
[379627253,1755349858662,-151.0,0.00022721,7]
[379627254,1755349858672,-151.0,0.00022721,7]
[379627255,1755349858681,-152.180093,0.00022721,7]
[379627256,1755349858691,-190.978845,0.00022721,7]
[379627257,1755349858700,-190.978845,0.00022721,7]
[379627258,1755349858710,-170.531394,0.00022721,7]
[379627259,1755349858720,-170.531394,0.00022721,7]
[379627260,1755349858730,-206.0,0.00022722,2]
[379627261,1755349858739,-462.1417622,0.0002273,7]
[379627262,1755349858751,-160.0,0.00022732,3]
[379627263,1755349858761,-352.85184165,0.00022738,2]
[379627264,1755349858770,-200.0,0.00022738,2]
[379627265,1755349858779,-1067.417758,0.00022739,7]
[379627266,1755349858789,-1067.417758,0.00022739,7]
[379627267,1755349858799,-1067.417758,0.00022739,7]
[379627268,1755349858808,-1067.417758,0.00022739,7]
[379627269,1755349858817,-151.0,0.00022739,7]
[379627270,1755349858827,-197.618048,0.00022739,7]
[379627271,1755349858836,-197.618048,0.00022739,7]
[379627272,1755349858845,-151.0,0.00022739,7]
[379627273,1755349858855,-151.0,0.00022739,7]
[379627274,1755349858864,-2889.088345,0.00022739,7]
[379627275,1755349858874,-2889.088345,0.00022739,7]
[379627276,1755349858884,-2889.088345,0.00022739,7]
[379627277,1755349858894,-2889.088345,0.00022739,7]
[379627278,1755349858903,-1492.189485,0.00022739,7]
[379627279,1755349858913,-1492.189485,0.00022739,7]
[379627280,1755349858923,-152.298776,0.00022739,7]
[379627281,1755349858932,-151.0,0.00022739,7]
[379627282,1755349858942,-151.779159,0.00022739,7]
[379627283,1755349858952,-151.0,0.00022739,7]
[379627284,1755349858961,-151.0,0.00022739,7]
[379627285,1755349858971,-151.0,0.00022739,7]
[379627286,1755349858980,-151.0,0.00022739,7]
[379627287,1755349858990,-151.0,0.00022739,7]
[379627288,1755349859001,-215.88313,0.00022739,7]
[379627289,1755349859010,-215.88313,0.00022739,7]
[379627290,1755349859020,-151.0,0.00022739,7]
[379627291,1755349859030,-151.0,0.00022739,7]
[379627292,1755349859040,-151.0,0.00022739,7]
[379627293,1755349859050,-151.0,0.00022739,7]
[379627294,1755349859060,-764.315464,0.00022739,7]
[379627295,1755349859069,-764.315464,0.00022739,7]
[379627296,1755349859079,-764.315464,0.00022739,7]
[379627297,1755349859089,-764.315464,0.00022739,7]
[379627298,1755349859098,-151.0,0.00022739,7]
[379627299,1755349859108,-151.0,0.00022739,7]
[379627300,1755349859118,-151.0,0.00022739,7]
[379627301,1755349859128,-151.0,0.00022739,7]
[379627302,1755349859137,-151.0,0.00022739,7]
[379627303,1755349859147,-151.0,0.00022739,7]
[379627304,1755349859157,-239.172284,0.00022739,7]
[379627305,1755349859167,-4087.48139,0.00022739,7]
[379627306,1755349859176,-4087.48139,0.00022739,7]
[379627307,1755349859185,-151.0,0.00022739,7]
[379627308,1755349859195,-151.0,0.00022739,7]
[379627309,1755349859204,-151.0,0.00022739,7]
[379627310,1755349859214,-151.0,0.00022739,7]
[379627311,1755349859224,-151.0,0.00022739,7]
[379627312,1755349859234,-613.65319889,0.00022739,3]
[379627313,1755349859245,-480.0,0.00022739,3]
[379627314,1755349859259,-782.042142,0.00022739,7]
[379627315,1755349859269,-782.042142,0.00022739,7]
[379627316,1755349859279,-331.713556,0.00022739,7]
[379627317,1755349859288,-151.0,0.00022739,7]
[379627318,1755349859298,-331.713556,0.00022739,7]
[379627319,1755349859311,-360.0,0.00022739,3]
[379627320,1755349859322,-480.0,0.00022739,3]
[379627321,1755349859332,-190.978845,0.00022739,7]
[379627322,1755349859341,-190.978845,0.00022739,7]
[379627323,1755349859351,-480.0,0.00022739,3]
[379627324,1755349859361,-170.531394,0.00022739,7]
[379627325,1755349859371,-170.531394,0.00022739,7]
[379627326,1755349859384,-480.0,0.00022739,3]
[379627327,1755349859397,-158.55,0.00022739,7]
[379627328,1755349859407,-158.55,0.00022739,7]
[379627329,1755349859416,-480.0,0.00022739,3]
[379627330,1755349859426,-420.0,0.00022739,3]
[379627331,1755349859435,-480.0,0.00022739,3]
[379627332,1755349859445,-500.0,0.00022739,3]
[379627333,1755349859454,-480.0,0.00022739,3]
[379627334,1755349859464,-562.10159793,0.00022739,3]
[379627335,1755349859473,-480.0,0.00022739,3]
[379627336,1755349859483,-480.0,0.00022739,3]
[379627337,1755349859495,-481.48,0.00022739,3]
[379627338,1755349859505,-480.0,0.00022739,3]
[379627339,1755349859515,-480.0,0.00022739,3]
[379627340,1755349859525,-414.32759978,0.00022739,3]
[379627341,1755349859535,-480.0,0.00022739,3]
[379627342,1755349859544,-480.0,0.00022739,3]
[379627343,1755349859554,-828.32,0.00022739,3]
[379627344,1755349859564,-480.0,0.00022739,3]
[379627345,1755349859574,-480.0,0.00022739,3]
[379627346,1755349859584,-676.16,0.00022739,3]
[379627347,1755349859595,-525.0,0.00022739,3]
[379627348,1755349859605,-205.394054,0.00022739,7]
[379627349,1755349859614,-480.0,0.00022739,3]
[379627350,1755349859624,-205.394054,0.00022739,7]
[379627351,1755349859633,-695.38,0.00022739,3]
[379627352,1755349859643,-480.0,0.00022739,3]
[379627353,1755349859653,-480.0,0.00022739,3]
[379627354,1755349859663,-480.0,0.00022739,3]
[379627355,1755349859672,-526.53,0.00022739,3]
[379627356,1755349859682,-818.86,0.00022739,3]
[379627357,1755349859693,-480.0,0.00022739,3]
[379627358,1755349859704,-480.0,0.00022739,3]
[379627359,1755349859713,-480.0,0.00022739,3]
[379627360,1755349859723,-480.0,0.00022739,3]
[379627361,1755349859733,-480.0,0.00022739,3]
[379627362,1755349859743,-480.0,0.00022739,3]
[379627363,1755349859753,-480.0,0.00022739,3]
[379627364,1755349859762,-526.48,0.00022739,3]
[379627365,1755349859902,-480.0,0.00022739,3]
[379627366,1755349859912,-2614.19,0.00022739,3]
[379627367,1755349859922,-480.0,0.00022739,3]
[379627368,1755349859932,-480.0,0.00022739,3]
[379627369,1755349859941,-480.0,0.00022739,3]
[379627370,1755349859951,-480.0,0.00022739,3]
[379627371,1755349859960,-480.0,0.00022739,3]
[379627372,1755349859970,-175.97819564,0.00022739,3]
[379627373,1755349859979,-480.0,0.00022739,3]
[379627374,1755349859988,-480.0,0.00022739,3]
[379627375,1755349859999,-480.0,0.00022739,3]
[379627376,1755349860009,-480.0,0.00022739,3]
[379627377,1755349860020,-480.0,0.00022739,3]
[379627378,1755349860029,-480.0,0.00022739,3]
[379627379,1755349860039,-480.0,0.00022739,3]
[379627380,1755349860048,-749.15,0.00022739,3]
[379627381,1755349860058,-340.0,0.00022739,3]
[379627382,1755349860068,-900.411461,0.00022739,7]
[379627383,1755349860078,-831.31,0.00022739,3]
[379627384,1755349860087,-900.411461,0.00022739,7]
[379627385,1755349860096,-306.05779555,0.00022739,3]
[379627386,1755349860105,-480.0,0.00022739,3]
[379627387,1755349860116,-480.0,0.00022739,3]
[379627388,1755349860125,-480.0,0.00022739,3]
[379627389,1755349860135,-480.0,0.00022739,3]
[379627390,1755349860144,-480.0,0.00022739,3]
[379627391,1755349860153,-480.0,0.00022739,3]
[379627392,1755349860162,-480.0,0.00022739,3]
[379627393,1755349860172,-538.39024554,0.00022739,3]
[379627394,1755349860181,-480.0,0.00022739,3]
[379627395,1755349860191,-480.0,0.00022739,3]
[379627396,1755349860201,-480.0,0.00022739,3]
[379627397,1755349860210,-582.74,0.00022739,3]
[379627398,1755349860220,-480.0,0.00022739,3]
[379627399,1755349860230,-489.55,0.00022739,3]
[379627400,1755349860239,-480.0,0.00022739,3]
[379627401,1755349860250,-480.0,0.00022739,3]
[379627402,1755349860260,-480.0,0.00022739,3]
[379627403,1755349860270,-480.0,0.00022739,3]
[379627404,1755349860279,-480.0,0.00022739,3]
[379627405,1755349860289,-1531.67,0.00022739,3]
[379627406,1755349860298,-480.0,0.00022739,3]
[379627407,1755349860309,-1954.3,0.00022739,3]
[379627408,1755349860326,-480.0,0.00022739,3]
[379627409,1755349860336,-480.0,0.00022739,3]
[379627410,1755349860346,-480.0,0.00022739,3]
[379627411,1755349860356,-515.89,0.00022739,3]
[379627412,1755349860367,-480.0,0.00022739,3]
[379627413,1755349860377,-578.77,0.00022739,3]
[379627414,1755349860387,-480.0,0.00022739,3]
[379627415,1755349860400,-480.0,0.00022739,3]
[379627416,1755349860410,-704.72,0.00022739,3]
[379627417,1755349860420,-480.0,0.00022739,3]
[379627418,1755349860430,-593.17,0.00022739,3]
[379627419,1755349860440,-528.15,0.00022739,3]
[379627420,1755349860449,-480.0,0.00022739,3]
[379627421,1755349860459,-480.0,0.00022739,3]
[379627422,1755349860468,-480.0,0.00022739,3]
[379627423,1755349860478,-480.0,0.00022739,3]
[379627424,1755349860487,-480.0,0.00022739,3]
[379627425,1755349860497,-480.0,0.00022739,3]
[379627426,1755349860506,-480.0,0.00022739,3]
[379627427,1755349860516,-480.0,0.00022739,3]
[379627428,1755349860525,-480.0,0.00022739,3]
[379627429,1755349860534,-480.0,0.00022739,3]
[379627430,1755349860543,-480.0,0.00022739,3]
[379627431,1755349860553,-480.0,0.00022739,3]
[379627432,1755349860562,-480.0,0.00022739,3]
[379627433,1755349860572,-480.0,0.00022739,3]
[379627434,1755349860581,-480.0,0.00022739,3]
[379627435,1755349860590,-491.19,0.00022739,3]
[379627436,1755349860600,-707.74,0.00022739,3]
[379627437,1755349860609,-1691.17,0.00022739,3]
[379627438,1755349860619,-216.85890832,0.00022739,3]
[379627439,1755349860628,-305.202251,0.00022739,7]
[379627440,1755349860637,-305.202251,0.00022739,7]
[379627441,1755349860647,-480.0,0.00022739,3]
[379627442,1755349860656,-2627.16,0.00022739,3]
[379627443,1755349860665,-480.0,0.00022739,3]
[379627444,1755349860675,-1336.6,0.00022739,3]
[379627445,1755349860684,-613.47441294,0.00022739,3]
[379627446,1755349860693,-480.0,0.00022739,3]
[379627447,1755349860703,-480.0,0.00022739,3]
[379627448,1755349860712,-480.0,0.00022739,3]
[379627449,1755349860721,-480.0,0.00022739,3]
[379627450,1755349860730,-496.92,0.00022739,3]
[379627451,1755349860739,-191.13990144,0.00022739,3]
[379627452,1755349860749,-480.0,0.00022739,3]
[379627453,1755349860758,-480.0,0.00022739,3]
[379627454,1755349860768,-581.71,0.00022739,3]
[379627455,1755349860777,-480.0,0.00022739,3]
[379627456,1755349860787,-480.0,0.00022739,3]
[379627457,1755349860796,-480.0,0.00022739,3]
[379627458,1755349860805,-658.699521,0.00022739,7]
[379627459,1755349860814,-532.58,0.00022739,2]
[379627460,1755349860823,-658.699521,0.00022739,7]
[379627461,1755349860833,-480.0,0.00022739,3]
[379627462,1755349860842,-719.31,0.00022739,3]
[379627463,1755349860851,-480.0,0.00022739,3]
[379627464,1755349860860,-480.0,0.00022739,3]
[379627465,1755349860870,-480.0,0.00022739,3]
[379627466,1755349860879,-480.0,0.00022739,3]
[379627467,1755349860888,-524.62551342,0.00022739,3]
[379627468,1755349860898,-480.0,0.00022739,3]
[379627469,1755349860907,-1068.75,0.00022739,3]
[379627470,1755349860916,-480.0,0.00022739,3]
[379627471,1755349860926,-480.0,0.00022739,3]
[379627472,1755349860935,-5327.74,0.00022739,3]
[379627473,1755349860944,-754.16,0.00022739,3]
[379627474,1755349860954,-480.0,0.00022739,3]
[379627475,1755349860964,-480.0,0.00022739,3]
[379627476,1755349860973,-459.50791028,0.00022739,3]
[379627477,1755349860983,-480.0,0.00022739,3]
[379627478,1755349860993,-480.0,0.00022739,3]
[379627479,1755349861003,-286.57771974,0.00022739,3]
[379627480,1755349861013,-480.0,0.00022739,3]
[379627481,1755349861023,-480.0,0.00022739,3]
[379627482,1755349861033,-480.0,0.00022739,3]
[379627483,1755349861041,-480.0,0.00022739,3]
[379627484,1755349861051,-1811.08,0.00022739,3]
[379627485,1755349861060,-1524.43,0.00022739,3]
[379627486,1755349861069,-1319.02,0.00022739,3]
[379627487,1755349861079,-480.0,0.00022739,3]
[379627488,1755349861088,-2629.13,0.00022739,3]
[379627489,1755349861097,-959.29,0.00022739,3]
[379627490,1755349861106,-1808.31,0.00022739,3]
[379627491,1755349861115,-480.0,0.00022739,3]
[379627492,1755349861124,-1146.67,0.00022739,3]
[379627493,1755349861133,-480.0,0.00022739,3]
[379627494,1755349861143,-480.0,0.00022739,3]
[379627495,1755349861152,-480.0,0.00022739,3]
[379627496,1755349861161,-480.0,0.00022739,3]
[379627497,1755349861170,-1574.37,0.00022739,3]
[379627498,1755349861180,-480.0,0.00022739,3]
[379627499,1755349861189,-716.42,0.00022739,3]
[379627500,1755349861199,-480.0,0.00022739,3]
[379627501,1755349861209,-1549.41,0.00022739,3]
[379627502,1755349861217,-480.0,0.00022739,3]
[379627503,1755349861227,-480.0,0.00022739,3]
[379627504,1755349861236,-480.0,0.00022739,3]
[379627505,1755349861246,-891.71,0.00022739,3]
[379627506,1755349861255,-480.0,0.00022739,3]
[379627507,1755349861264,-620.49,0.00022739,3]
[379627508,1755349861274,-1485.98,0.00022739,3]
[379627509,1755349861283,-480.0,0.00022739,3]
[379627510,1755349861292,-538.00559162,0.00022739,3]
[379627511,1755349861302,-8906.36,0.00022739,3]
[379627512,1755349861313,-480.0,0.00022739,3]
[379627513,1755349861324,-639.12,0.00022739,3]
[379627514,1755349861333,-841.7,0.00022739,3]
[379627515,1755349861343,-819.77,0.00022739,3]
[379627516,1755349861353,-1317.03,0.00022739,3]
[379627517,1755349861364,-718.06,0.00022739,3]
[379627518,1755349861374,-1046.17,0.00022739,3]
[379627519,1755349861383,-1119.19,0.00022739,3]
[379627520,1755349861399,-597.606878,0.00022739,7]
[379627521,1755349861410,-480.0,0.00022739,3]
[379627522,1755349861420,-1254.61,0.00022739,3]
[379627523,1755349861430,-480.0,0.00022739,3]
[379627524,1755349861439,-597.606878,0.00022739,7]
[379627525,1755349861448,-480.0,0.00022739,3]
[379627526,1755349861458,-480.0,0.00022739,3]
[379627527,1755349861467,-480.0,0.00022739,3]
[379627528,1755349861477,-480.0,0.00022739,3]